[Event "Top 12 FRA-chT 2017"]
[Site "Chartres"]
[Date "2017.05.27"]
[Round "10"]
[White "Dionisi, Thomas"]
[Black "Shirazi, Kamran"]
[Result "1-0"]
[ECO "B28"]
[WhiteElo "2392"]
[BlackElo "2367"]
[Annotator "NA"]
[PlyCount "113"]
[EventDate "2017.??.??"]
[EventType "team-tourn"]
[EventCountry "FRA"]
[SourceTitle "playchess.com"]
[Source "ChessBase"]
[SourceQuality "1"]
[WhiteTeam "Bois-Colombes"]
[BlackTeam "Tremblay-En-France"]
[TimeControl "40/5400+30:1800+30"]

1. e4 {[%emt 0:00:00]} c5 {[%emt 0:00:37]} 2. Nf3 {[%emt 0:00:00]} a6 {[%emt 0:01:08]} 3. c3 {[%emt 0:00:00]} e6 {[%emt 0:00:27]} 4. d4 {[%emt 0:00:16]} d5 {[%emt 0:00:41]} 5. e5 {[%emt 0:01:01]} Bd7 {[%emt 0:00:41]} 6. Be3 {[%emt 0:08:06]} cxd4 {[%emt 0:03:59]} 7. cxd4 {[%emt 0:00:44]} f6 {[%emt 0:02:09]} 8. Nc3 {[%emt 0:06:15]} Nc6 {[%emt 0:00:24]} 9. Bd3 {[%emt 0:00:55]} Nh6 {[%emt 0:07:27]} 10. O-O {[%emt 0:07:06]} Nf7 {[%emt 0:01:54]} 11. Re1 {[%emt 0:02:09]} Be7 {[%emt 0:05:27]} 12. Bf4 {[%emt 0:06:33]} fxe5 {[%emt 0:22:34]} 13. Nxe5 {[%emt 0:10:06]} Ncxe5 {[%emt 0:01:30]} 14. dxe5 {[%emt 0:02:29]} g5 {[%emt 0:11:51]} 15. Be3 {[%emt 0:16:09]} Bc6 {[%emt 0:01:11]} 16. Bd4 {[%emt 0:00:22]} h5 {[%emt 0:06:30]} 17. Bg6 {[%emt 0:04:50]} g4 {[%emt 0:00:13]} 18. f4 {[%emt 0:00:42]} Rh6 {[%emt 0:00:37]} 19. Qd3 {[%emt 0:01:14]} Qd7 {[%emt 0:02:05]} 20. f5 {[%emt 0:02:09]} Rxg6 {[%emt 0:05:31]} 21. fxg6 {[%emt 0:00:05]} Ng5 {[%emt 0:00:08]} 22. Rf1 {[%emt 0:09:30]} O-O-O {[%emt 0:00:31]} 23. g7 {[%emt 0:01:20]} Rg8 {[%emt 0:00:40]} 24. Qg6 {[%emt 0:01:36]} Qe8 {[%emt 0:05:42]} 25. Qh6 {[%emt 0:01:13]} Kd7 {[%emt 0:01:20]} 26. Rf4 {[%emt 0:02:58]} Nf7 {[%emt 0:00:25]} 27. Qxh5 {[%emt 0:01:14]} Rxg7 {[%emt 0:00:02]} 28. Rxg4 {[%emt 0:06:48]} Rxg4 {[%emt 0:02:04]} 29. Qxg4 {[%emt 0:00:03]} Nh6 {[%emt 0:00:11]} 30. Qf4 {[%emt 0:02:35]} Qg6 {[%emt 0:00:18]} 31. Ne2 {[%emt 0:01:38]} Bg5 {[%emt 0:05:34]} 32. Qf2 {[%emt 0:02:24]} Bb5 {[%emt 0:02:03]} 33. Ng3 {[%emt 0:01:32]} Qd3 {[%emt 0:00:30]} 34. Bb6 {[%emt 0:01:10]} Ke8 {[%emt 0:00:35]} 35. Rf1 {[%emt 0:01:07]} Nf5 {[%emt 0:02:24]} 36. Nxf5 {[%emt 0:00:24]} exf5 {[%emt 0:00:02]} 37. Qxf5 {[%emt 0:01:08]} Qxf1+ {[%emt 0:02:05]} 38. Qxf1 {[%emt 0:00:03]} Bxf1 {[%emt 0:00:07]} 39. Kxf1 {[%emt 0:00:03]} Bf4 {[%emt 0:00:47]} 40. h3 {[%emt 0:01:24]} Bxe5 {[%emt 0:30:04]} 41. b3 {[%emt 0:30:07]} Kd7 {[%emt 0:05:32]} 42. Ke2 {[%emt 0:00:37]} Ke6 {[%emt 0:00:22]} 43. Ke3 {[%emt 0:00:00]} Kf5 {[%emt 0:00:00]} 44. Bd4 {[%emt 0:00:00]} Bd6 {[%emt 0:00:00]} 45. Kf3 {[%emt 0:00:00]} Kg5 {[%emt 0:00:00]} 46. g3 {[%emt 0:00:00]} b5 {[%emt 0:00:00]} 47. h4+ {[%emt 0:00:00]} Kh5 {[%emt 0:00:00]} 48. g4+ {[%emt 0:00:00]} Kg6 {[%emt 0:00:00]} 49. Be3 {[%emt 0:00:00]} Be5 {[%emt 0:00:00]} 50. Bf4 {[%emt 0:00:00]} Bc3 {[%emt 0:00:00]} 51. Ke2 {[%emt 0:00:00]} Kf6 {[%emt 0:00:00]} 52. h5 {[%emt 0:00:00]} Ke6 {[%emt 0:00:00]} 53. Kd3 {[%emt 0:00:00]} Ba5 {[%emt 0:00:00]} 54. Be3 {[%emt 0:00:00]} Bd8 {[%emt 0:00:00]} 55. g5 {[%emt 0:00:00]} Kf7 {[%emt 0:00:00]} 56. Bd2 {[%emt 0:00:00]} Ke6 {[%emt 0:00:00]} 57. g6 {[%emt 0:00:00]} 1-0

[Event "Top 12 FRA-chT 2017"]
[Site "Chartres"]
[Date "2017.05.27"]
[Round "10"]
[White "Burri, Quentin"]
[Black "Blanche, Paul"]
[Result "1-0"]
[ECO "B30"]
[WhiteElo "2378"]
[BlackElo "2081"]
[Annotator "NA"]
[PlyCount "77"]
[EventDate "2017.??.??"]
[EventType "team-tourn"]
[EventCountry "FRA"]
[SourceTitle "playchess.com"]
[Source "ChessBase"]
[SourceQuality "1"]
[WhiteTeam "Mulhouse Philidor"]
[BlackTeam "Lisieux"]
[TimeControl "40/5400+30:1800+30"]

1. e4 {[%emt 0:00:00]} c5 {[%emt 0:00:09]} 2. Nf3 {[%emt 0:00:00]} Nc6 {[%emt 0:00:13]} 3. Bb5 {[%emt 0:00:02]} e6 {[%emt 0:02:04]} 4. O-O {[%emt 0:00:57]} Nge7 {[%emt 0:01:32]} 5. Re1 {[%emt 0:01:00]} a6 {[%emt 0:01:38]} 6. Bf1 {[%emt 0:00:38]} g6 {[%emt 0:08:43]} 7. d3 {[%emt 0:09:54]} Bg7 {[%emt 0:01:56]} 8. c3 {[%emt 0:00:20]} d6 {[%emt 0:12:31]} 9. Nbd2 {[%emt 0:09:47]} O-O {[%emt 0:02:36]} 10. Nb3 {[%emt 0:01:30]} e5 {[%emt 0:12:21]} 11. Be3 {[%emt 0:09:30]} f5 {[%emt 0:10:35]} 12. Qc2 {[%emt 0:10:47]} b6 {[%emt 0:03:58]} 13. Rad1 {[%emt 0:03:19]} d5 {[%emt 0:06:12]} 14. exd5 {[%emt 0:05:21]} Nxd5 {[%emt 0:01:02]} 15. Bc1 {[%emt 0:04:32]} Bb7 {[%emt 0:03:51]} 16. a3 {[%emt 0:09:52]} Rc8 {[%emt 0:02:45]} 17. Qb1 {[%emt 0:00:39]} Kh8 {[%emt 0:03:12]} 18. Bd2 {[%emt 0:06:46]} Re8 {[%emt 0:03:08]} 19. Ng5 {[%emt 0:02:55]} Qd7 {[%emt 0:02:01]} 20. f3 {[%emt 0:02:46]} h6 {[%emt 0:01:30]} 21. Nh3 {[%emt 0:00:04]} Rcd8 {[%emt 0:07:09]} 22. Nf2 {[%emt 0:02:16]} Qf7 {[%emt 0:00:57]} 23. Qc2 {[%emt 0:01:07]} Rd7 {[%emt 0:01:23]} 24. Bc1 {[%emt 0:01:22]} Red8 {[%emt 0:01:40]} 25. a4 {[%emt 0:01:45]} a5 {[%emt 0:01:34]} 26. Nd2 {[%emt 0:00:50]} Ba6 {[%emt 0:03:11]} 27. Nc4 {[%emt 0:00:33]} Bxc4 {[%emt 0:02:53]} 28. dxc4 {[%emt 0:00:06]} Nc7 {[%emt 0:00:50]} 29. Qb3 {[%emt 0:01:03]} Rxd1 {[%emt 0:01:03]} 30. Rxd1 {[%emt 0:00:12]} Rxd1 {[%emt 0:00:03]} 31. Nxd1 {[%emt 0:00:28]} Na8 {[%emt 0:00:34]} 32. Ne3 {[%emt 0:00:19]} e4 {[%emt 0:01:14]} 33. f4 {[%emt 0:00:31]} Qb7 {[%emt 0:00:24]} 34. Nd5 {[%emt 0:00:36]} Ne7 {[%emt 0:00:59]} 35. Be3 {[%emt 0:00:41]} Nxd5 {[%emt 0:01:27]} 36. cxd5 {[%emt 0:00:05]} Qc7 {[%emt 0:00:09]} 37. Qb5 {[%emt 0:00:51]} Kh7 {[%emt 0:00:11]} 38. Qe8 {[%emt 0:00:30]} Qb7 {[%emt 0:01:06]} 39. Bc4 {[%emt 0:02:02]} 1-0

[Event "Top 12 FRA-chT 2017"]
[Site "Chartres"]
[Date "2017.05.27"]
[Round "10"]
[White "Bollengier, Andreea"]
[Black "Maisuradze, Nino"]
[Result "1-0"]
[ECO "B22"]
[WhiteElo "2234"]
[BlackElo "2260"]
[Annotator "NA"]
[PlyCount "64"]
[EventDate "2017.??.??"]
[EventType "team-tourn"]
[EventCountry "FRA"]
[SourceTitle "playchess.com"]
[Source "ChessBase"]
[SourceQuality "1"]
[WhiteTeam "Nice Alekhine"]
[BlackTeam "Bischwiller"]
[TimeControl "40/5400+30:1800+30"]

1. e4 {[%emt 0:00:00]} c5 {[%emt 0:00:14]} 2. c3 {[%emt 0:00:00]} d5 {[%emt 0:01:07]} 3. exd5 {[%emt 0:00:01]} Qxd5 {[%emt 0:00:02]} 4. d4 {[%emt 0:00:37]} Nf6 {[%emt 0:02:10]} 5. Nf3 {[%emt 0:01:16]} Bg4 {[%emt 0:02:53]} 6. dxc5 {[%emt 0:00:43]} Qxc5 {[%emt 0:00:16]} 7. Na3 {[%emt 0:02:07]} a6 {[%emt 0:03:20]} 8. Be3 {[%emt 0:00:27]} Qc8 {[%emt 0:06:01]} 9. h3 {[%emt 0:00:47]} Bh5 {[%emt 0:05:27]} 10. Nc4 {[%emt 0:09:14]} Nbd7 {[%emt 0:02:36]} 11. g4 {[%emt 0:00:44]} Bg6 {[%emt 0:00:28]} 12. g5 {[%emt 0:10:54]} Ne4 {[%emt 0:05:28]} 13. Nh4 {[%emt 0:20:27]} e6 {[%emt 0:28:12]} 14. Nxg6 {[%emt 0:00:34]} hxg6 {[%emt 0:02:56]} 15. Qd4 {[%emt 0:20:06]} Rh4 {[%emt 0:01:07]} 16. O-O-O {[%emt 0:05:38]} Rb8 {[%emt 0:02:56]} 17. Ne5 {[%emt 0:16:06]} Nxe5 {[%emt 0:08:35]} 18. Qxe5 {[%emt 0:00:01]} b5 {[%emt 0:09:16]} 19. Bf4 {[%emt 0:01:14]} Rxf4 {[%emt 0:09:19]} 20. Qxf4 {[%emt 0:00:11]} Nc5 {[%emt 0:00:25]} 21. Bg2 {[%emt 0:00:21]} Be7 {[%emt 0:02:16]} 22. Kb1 {[%emt 0:00:16]} Rb6 {[%emt 0:02:07]} 23. h4 {[%emt 0:00:18]} f6 {[%emt 0:03:19]} 24. h5 {[%emt 0:01:36]} e5 {[%emt 0:00:37]} 25. Qf3 {[%emt 0:02:16]} fxg5 {[%emt 0:00:45]} 26. hxg6 {[%emt 0:00:08]} Rf6 {[%emt 0:00:12]} 27. Rh8+ {[%emt 0:01:41]} Bf8 {[%emt 0:00:04]} 28. Qd5 {[%emt 0:01:07]} Qc7 {[%emt 0:01:31]} 29. Re1 {[%emt 0:03:18]} e4 {[%emt 0:00:23]} 30. Bxe4 {[%emt 0:00:05]} Re6 {[%emt 0:00:52]} 31. f3 {[%emt 0:00:21]} Nxe4 {[%emt 0:00:35]} 32. Rxe4 {[%emt 0:00:24]} Rxe4 {[%emt 0:00:00]} 1-0

[Event "Top 12 FRA-chT 2017"]
[Site "Chartres"]
[Date "2017.05.27"]
[Round "10"]
[White "Marie, Maxime"]
[Black "Haussernot, Cecile"]
[Result "1-0"]
[ECO "A30"]
[WhiteElo "2177"]
[BlackElo "2099"]
[Annotator "NA"]
[PlyCount "67"]
[EventDate "2017.??.??"]
[EventType "team-tourn"]
[EventCountry "FRA"]
[SourceTitle "playchess.com"]
[Source "ChessBase"]
[SourceQuality "1"]
[WhiteTeam "Lisieux"]
[BlackTeam "Mulhouse Philidor"]
[TimeControl "40/5400+30:1800+30"]

1. c4 {[%emt 0:00:00]} c5 {[%emt 0:00:15]} 2. g3 {[%emt 0:00:00]} Nc6 {[%emt 0:00:17]} 3. Bg2 {[%emt 0:00:00]} g6 {[%emt 0:00:08]} 4. e3 {[%emt 0:01:31]} Bg7 {[%emt 0:01:16]} 5. Ne2 {[%emt 0:00:34]} e6 {[%emt 0:00:12]} 6. Nbc3 {[%emt 0:01:47]} Nge7 {[%emt 0:02:41]} 7. Ne4 {[%emt 0:06:11]} d6 {[%emt 0:06:45]} 8. h4 {[%emt 0:00:18]} h5 {[%emt 0:09:54]} 9. a3 {[%emt 0:04:17]} O-O {[%emt 0:14:21]} 10. Rb1 {[%emt 0:03:36]} Ne5 {[%emt 0:03:07]} 11. d3 {[%emt 0:03:56]} d5 {[%emt 0:02:45]} 12. Nxc5 {[%emt 0:05:51]} b6 {[%emt 0:09:12]} 13. Na4 {[%emt 0:11:07]} Ba6 {[%emt 0:01:10]} 14. b3 {[%emt 0:02:14]} dxc4 {[%emt 0:01:36]} 15. dxc4 {[%emt 0:00:22]} Nd3+ {[%emt 0:01:46]} 16. Kf1 {[%emt 0:00:28]} Nc5 {[%emt 0:00:32]} 17. Nb2 {[%emt 0:21:19]} Qxd1+ {[%emt 0:03:04]} 18. Nxd1 {[%emt 0:01:03]} Rad8 {[%emt 0:00:05]} 19. Ke1 {[%emt 0:08:16]} Rd3 {[%emt 0:13:12]} 20. b4 {[%emt 0:02:19]} Rfd8 {[%emt 0:00:23]} 21. Nb2 {[%emt 0:04:29]} Bxb2 {[%emt 0:00:32]} 22. Bxb2 {[%emt 0:00:23]} Na4 {[%emt 0:24:17]} 23. Bf6 {[%emt 0:04:56]} Bxc4 {[%emt 0:02:04]} 24. Bxe7 {[%emt 0:01:53]} Rd2 {[%emt 0:00:05]} 25. Bf3 {[%emt 0:03:57]} R8d7 {[%emt 0:02:07]} 26. Bf6 {[%emt 0:00:49]} Ra2 {[%emt 0:00:25]} 27. Rd1 {[%emt 0:01:35]} Rxd1+ {[%emt 0:00:52]} 28. Kxd1 {[%emt 0:00:06]} Bb3+ {[%emt 0:00:23]} 29. Kc1 {[%emt 0:03:46]} Bc4 {[%emt 0:00:15]} 30. Rd1 {[%emt 0:00:32]} Bd5 {[%emt 0:00:33]} 31. e4 {[%emt 0:01:17]} Rxa3 {[%emt 0:00:31]} 32. exd5 {[%emt 0:00:10]} Rxf3 {[%emt 0:00:05]} 33. d6 {[%emt 0:00:16]} Rxf6 {[%emt 0:00:16]} 34. d7 {[%emt 0:00:06]} 1-0

[Event "Top 12 FRA-chT 2017"]
[Site "Chartres"]
[Date "2017.05.27"]
[Round "10"]
[White "Leconte, Maria"]
[Black "Steil-Antoni, Fiona"]
[Result "1/2-1/2"]
[ECO "B15"]
[WhiteElo "2174"]
[BlackElo "2155"]
[Annotator "NA"]
[PlyCount "61"]
[EventDate "2017.??.??"]
[EventType "team-tourn"]
[EventCountry "FRA"]
[SourceTitle "playchess.com"]
[Source "ChessBase"]
[SourceQuality "1"]
[WhiteTeam "Saint Quentin"]
[BlackTeam "Vandoeuvre"]
[TimeControl "40/5400+30:1800+30"]

1. e4 {[%emt 0:00:00]} c6 {[%emt 0:00:04]} 2. d4 {[%emt 0:03:05]} d5 {[%emt 0:00:06]} 3. Nc3 {[%emt 0:00:11]} dxe4 {[%emt 0:00:06]} 4. Nxe4 {[%emt 0:00:03]} Nf6 {[%emt 0:00:10]} 5. Nxf6+ {[%emt 0:00:24]} exf6 {[%emt 0:00:07]} 6. Bc4 {[%emt 0:08:38]} Bd6 {[%emt 0:00:57]} 7. Ne2 {[%emt 0:02:19]} Qc7 {[%emt 0:02:10]} 8. Ng3 {[%emt 0:09:38]} O-O {[%emt 0:03:17]} 9. O-O {[%emt 0:00:26]} Rd8 {[%emt 0:03:52]} 10. Re1 {[%emt 0:09:49]} Nd7 {[%emt 0:01:33]} 11. Bb3 {[%emt 0:14:06]} Nf8 {[%emt 0:01:07]} 12. c4 {[%emt 0:06:33]} Ng6 {[%emt 0:03:48]} 13. Be3 {[%emt 0:11:22]} f5 {[%emt 0:16:33]} 14. Bg5 {[%emt 0:00:23]} Rf8 {[%emt 0:00:23]} 15. c5 {[%emt 0:10:17]} Bf4 {[%emt 0:01:41]} 16. Bxf4 {[%emt 0:00:31]} Qxf4 {[%emt 0:01:12]} 17. d5 {[%emt 0:08:26]} Bd7 {[%emt 0:01:53]} 18. d6 {[%emt 0:02:13]} Rae8 {[%emt 0:01:32]} 19. Re2 {[%emt 0:06:06]} Qg5 {[%emt 0:02:06]} 20. Rxe8 {[%emt 0:00:41]} Rxe8 {[%emt 0:00:32]} 21. Qh5 {[%emt 0:00:45]} Qxh5 {[%emt 0:06:25]} 22. Nxh5 {[%emt 0:00:01]} Re5 {[%emt 0:00:11]} 23. f4 {[%emt 0:01:30]} Rxc5 {[%emt 0:00:42]} 24. Re1 {[%emt 0:00:22]} a5 {[%emt 0:07:47]} 25. Kf2 {[%emt 0:00:35]} b5 {[%emt 0:01:18]} 26. Ke3 {[%emt 0:00:24]} b4 {[%emt 0:06:42]} 27. Kd4 {[%emt 0:00:04]} Rb5 {[%emt 0:00:09]} 28. Bc4 {[%emt 0:00:25]} Rb8 {[%emt 0:00:49]} 29. Kc5 {[%emt 0:00:25]} h6 {[%emt 0:12:26]} 30. Re3 {[%emt 0:00:18]} Kf8 {[%emt 0:06:41]} 31. b3 {[%emt 0:00:03]} 1/2-1/2

[Event "Top 12 FRA-chT 2017"]
[Site "Chartres"]
[Date "2017.05.27"]
[Round "10"]
[White "Aflalo, Sophie"]
[Black "Congiu, Mathilde"]
[Result "1-0"]
[ECO "B32"]
[WhiteElo "2135"]
[BlackElo "2248"]
[Annotator "NA"]
[PlyCount "81"]
[EventDate "2017.??.??"]
[EventType "team-tourn"]
[EventCountry "FRA"]
[SourceTitle "playchess.com"]
[Source "ChessBase"]
[SourceQuality "1"]
[WhiteTeam "Tremblay-En-France"]
[BlackTeam "Bois-Colombes"]
[TimeControl "40/5400+30:1800+30"]

1. e4 {[%emt 0:00:00]} c5 {[%emt 0:00:16]} 2. Nf3 {[%emt 0:00:00]} Nc6 {[%emt 0:00:21]} 3. d4 {[%emt 0:03:00]} cxd4 {[%emt 0:00:12]} 4. Nxd4 {[%emt 0:00:10]} e5 {[%emt 0:00:17]} 5. Nb5 {[%emt 0:02:45]} d6 {[%emt 0:00:28]} 6. N1c3 {[%emt 0:00:39]} a6 {[%emt 0:00:28]} 7. Na3 {[%emt 0:00:03]} Be7 {[%emt 0:00:25]} 8. Be3 {[%emt 0:00:16]} b5 {[%emt 0:03:48]} 9. Nd5 {[%emt 0:00:05]} Rb8 {[%emt 0:01:40]} 10. c4 {[%emt 0:09:47]} b4 {[%emt 0:00:55]} 11. Nc2 {[%emt 0:02:26]} Nf6 {[%emt 0:01:49]} 12. Qd3 {[%emt 0:00:43]} O-O {[%emt 0:03:51]} 13. Be2 {[%emt 0:02:15]} Nxd5 {[%emt 0:16:48]} 14. cxd5 {[%emt 0:11:09]} Na5 {[%emt 0:01:33]} 15. O-O {[%emt 0:00:14]} f5 {[%emt 0:06:44]} 16. f3 {[%emt 0:00:41]} b3 {[%emt 0:01:35]} 17. axb3 {[%emt 0:13:13]} Rxb3 {[%emt 0:07:41]} 18. Qd2 {[%emt 0:00:24]} Rxe3 {[%emt 0:04:24]} 19. Qxe3 {[%emt 0:00:27]} Bg5 {[%emt 0:00:11]} 20. Qc3 {[%emt 0:06:08]} Qb6+ {[%emt 0:00:58]} 21. Kh1 {[%emt 0:00:05]} Nb3 {[%emt 0:00:46]} 22. Rad1 {[%emt 0:12:32]} a5 {[%emt 0:06:16]} 23. Na3 {[%emt 0:02:40]} Nd4 {[%emt 0:03:48]} 24. Bd3 {[%emt 0:03:04]} Qd8 {[%emt 0:00:45]} 25. f4 {[%emt 0:04:33]} Bf6 {[%emt 0:01:39]} 26. fxe5 {[%emt 0:00:11]} Bxe5 {[%emt 0:03:26]} 27. Nc4 {[%emt 0:01:42]} Bf6 {[%emt 0:00:00]} 28. Qxa5 {[%emt 0:00:24]} Qe8 {[%emt 0:08:59]} 29. Nxd6 {[%emt 0:00:52]} Qh5 {[%emt 0:00:18]} 30. Nc4 {[%emt 0:01:03]} fxe4 {[%emt 0:13:27]} 31. Bxe4 {[%emt 0:01:06]} Re8 {[%emt 0:05:03]} 32. Qc7 {[%emt 0:16:31]} Ba6 {[%emt 0:02:02]} 33. Bf3 {[%emt 0:02:54]} Nxf3 {[%emt 0:00:44]} 34. gxf3 {[%emt 0:03:00]} Rc8 {[%emt 0:00:47]} 35. Qd7 {[%emt 0:00:09]} Rxc4 {[%emt 0:02:44]} 36. Qe6+ {[%emt 0:00:04]} Kf8 {[%emt 0:00:16]} 37. Qxa6 {[%emt 0:01:22]} Be5 {[%emt 0:02:30]} 38. Rd2 {[%emt 0:00:26]} Rc1 {[%emt 0:00:59]} 39. Qa3+ {[%emt 0:00:23]} Kf7 {[%emt 0:00:16]} 40. Rxc1 {[%emt 0:00:14]} Bf4 {[%emt 0:30:26]} 41. Qa7+ {[%emt 0:30:51]} 1-0

[Event "Top 12 FRA-chT 2017"]
[Site "Chartres"]
[Date "2017.05.27"]
[Round "10"]
[White "De Seroux, Camille"]
[Black "Roos, Louis"]
[Result "0-1"]
[ECO "B24"]
[WhiteElo "2117"]
[BlackElo "2346"]
[Annotator "NA"]
[PlyCount "68"]
[EventDate "2017.??.??"]
[EventType "team-tourn"]
[EventCountry "FRA"]
[SourceTitle "playchess.com"]
[Source "ChessBase"]
[SourceQuality "1"]
[WhiteTeam "Grasse Echecs"]
[BlackTeam "Strasbourg"]
[TimeControl "40/5400+30:1800+30"]

1. e4 {[%emt 0:00:00]} c5 {[%emt 0:02:09]} 2. Nc3 {[%emt 0:01:45]} Nc6 {[%emt 0:03:44]} 3. Bb5 {[%emt 0:01:14]} Nd4 {[%emt 0:10:18]} 4. Bc4 {[%emt 0:00:13]} a6 {[%emt 0:00:52]} 5. d3 {[%emt 0:01:34]} d6 {[%emt 0:03:58]} 6. Nge2 {[%emt 0:03:27]} Nc6 {[%emt 0:16:00]} 7. a4 {[%emt 0:04:08]} e6 {[%emt 0:06:51]} 8. O-O {[%emt 0:00:57]} Nf6 {[%emt 0:06:08]} 9. f4 {[%emt 0:14:19]} d5 {[%emt 0:06:06]} 10. Ba2 {[%emt 0:09:39]} Be7 {[%emt 0:02:44]} 11. Ng3 {[%emt 0:06:10]} dxe4 {[%emt 0:03:59]} 12. Ncxe4 {[%emt 0:09:41]} h5 {[%emt 0:06:29]} 13. Nxf6+ {[%emt 0:07:27]} Bxf6 {[%emt 0:00:22]} 14. c3 {[%emt 0:00:26]} h4 {[%emt 0:05:34]} 15. Nh5 {[%emt 0:03:14]} b6 {[%emt 0:06:12]} 16. f5 {[%emt 0:06:03]} e5 {[%emt 0:02:45]} 17. Qg4 {[%emt 0:09:35]} Kf8 {[%emt 0:07:47]} 18. Rf3 {[%emt 0:02:03]} e4 {[%emt 0:02:42]} 19. Qxe4 {[%emt 0:04:03]} Rxh5 {[%emt 0:00:18]} 20. Qxc6 {[%emt 0:00:21]} Ra7 {[%emt 0:00:12]} 21. a5 {[%emt 0:03:07]} Re7 {[%emt 0:03:28]} 22. Qxb6 {[%emt 0:04:48]} Re1+ {[%emt 0:00:31]} 23. Kf2 {[%emt 0:00:28]} Qe8 {[%emt 0:00:14]} 24. Qxc5+ {[%emt 0:06:27]} Kg8 {[%emt 0:00:27]} 25. Re3 {[%emt 0:00:30]} Rxe3 {[%emt 0:00:35]} 26. Qxe3 {[%emt 0:00:12]} Rxf5+ {[%emt 0:00:06]} 27. Kg1 {[%emt 0:00:16]} Re5 {[%emt 0:00:09]} 28. Qf3 {[%emt 0:00:49]} Bb7 {[%emt 0:01:11]} 29. Qg4 {[%emt 0:00:51]} Re2 {[%emt 0:01:02]} 30. Qh5 {[%emt 0:00:36]} Rxg2+ {[%emt 0:00:25]} 31. Kf1 {[%emt 0:00:10]} g6 {[%emt 0:00:13]} 32. Qd1 {[%emt 0:00:33]} Rxh2 {[%emt 0:00:12]} 33. Be3 {[%emt 0:00:49]} Qxe3 {[%emt 0:00:23]} 34. Bxf7+ {[%emt 0:00:03]} Kg7 {[%emt 0:00:16]} 0-1

[Event "Top 12 FRA-chT 2017"]
[Site "Chartres"]
[Date "2017.05.27"]
[Round "10"]
[White "Guerlin Dit De Guer, Clarisse"]
[Black "Guichard, Pauline"]
[Result "0-1"]
[ECO "B06"]
[WhiteElo "1278"]
[BlackElo "2312"]
[Annotator "NA"]
[PlyCount "36"]
[EventDate "2017.??.??"]
[EventType "team-tourn"]
[EventCountry "FRA"]
[SourceTitle "playchess.com"]
[Source "ChessBase"]
[SourceQuality "1"]
[WhiteTeam "Montpellier"]
[BlackTeam "Clichy"]
[TimeControl "40/5400+30:1800+30"]

1. e4 {[%emt 0:00:00]} g6 {[%emt 0:00:05]} 2. d4 {[%emt 0:00:00]} Bg7 {[%emt 0:00:07]} 3. Nf3 {[%emt 0:00:00]} d6 {[%emt 0:00:23]} 4. h3 {[%emt 0:03:54]} c5 {[%emt 0:01:49]} 5. c3 {[%emt 0:02:52]} b6 {[%emt 0:03:23]} 6. Bc4 {[%emt 0:02:52]} e6 {[%emt 0:04:48]} 7. Bb3 {[%emt 0:03:40]} Nf6 {[%emt 0:01:03]} 8. Bg5 {[%emt 0:07:23]} Qc7 {[%emt 0:05:22]} 9. Qe2 {[%emt 0:06:06]} O-O {[%emt 0:02:45]} 10. O-O {[%emt 0:00:23]} Ba6 {[%emt 0:03:31]} 11. c4 {[%emt 0:05:41]} d5 {[%emt 0:03:08]} 12. e5 {[%emt 0:04:08]} Nfd7 {[%emt 0:01:48]} 13. Rd1 {[%emt 0:08:40]} cxd4 {[%emt 0:01:29]} 14. Rxd4 {[%emt 0:00:31]} Nc6 {[%emt 0:01:22]} 15. Rd2 {[%emt 0:05:21]} Ncxe5 {[%emt 0:01:13]} 16. Bf4 {[%emt 0:14:18]} dxc4 {[%emt 0:01:50]} 17. Bc2 {[%emt 0:06:49]} c3 {[%emt 0:01:41]} 18. Qxa6 {[%emt 0:05:28]} cxb2 {[%emt 0:01:32]} 0-1

[Event "Top 12 FRA-chT 2017"]
[Site "Chartres"]
[Date "2017.05.28"]
[Round "11"]
[White "Roos, Louis"]
[Black "Bollengier, Andreea"]
[Result "0-1"]
[ECO "A12"]
[WhiteElo "2346"]
[BlackElo "2234"]
[Annotator "NA"]
[PlyCount "62"]
[EventDate "2017.??.??"]
[EventType "team-tourn"]
[EventCountry "FRA"]
[SourceTitle "playchess.com"]
[Source "ChessBase"]
[SourceQuality "1"]
[WhiteTeam "Strasbourg"]
[BlackTeam "Nice Alekhine"]
[TimeControl "40/5400+30:1800+30"]

1. c4 {[%emt 0:00:32]} c6 {[%emt 0:00:09]} 2. Nf3 {[%emt 0:03:12]} Nf6 {[%emt 0:00:13]} 3. b3 {[%emt 0:00:16]} d5 {[%emt 0:00:13]} 4. e3 {[%emt 0:00:12]} Bf5 {[%emt 0:00:39]} 5. Bb2 {[%emt 0:00:30]} e6 {[%emt 0:00:08]} 6. h3 {[%emt 0:02:16]} Nbd7 {[%emt 0:00:11]} 7. a3 {[%emt 0:03:23]} h6 {[%emt 0:00:29]} 8. Nc3 {[%emt 0:10:48]} Bd6 {[%emt 0:01:44]} 9. Be2 {[%emt 0:03:57]} O-O {[%emt 0:01:35]} 10. g4 {[%emt 0:03:04]} Be4 {[%emt 0:02:37]} 11. d3 {[%emt 0:01:18]} Bxf3 {[%emt 0:00:31]} 12. Bxf3 {[%emt 0:00:18]} dxc4 {[%emt 0:17:12]} 13. dxc4 {[%emt 0:16:32]} Bc7 {[%emt 0:25:32]} 14. Qc2 {[%emt 0:02:27]} Ne5 {[%emt 0:00:35]} 15. Be2 {[%emt 0:00:10]} Nh7 {[%emt 0:00:32]} 16. h4 {[%emt 0:00:54]} f5 {[%emt 0:04:11]} 17. f4 {[%emt 0:31:31]} Nxg4 {[%emt 0:03:10]} 18. Bxg4 {[%emt 0:04:50]} fxg4 {[%emt 0:00:07]} 19. Ne4 {[%emt 0:04:19]} e5 {[%emt 0:29:13]} 20. Ng5 {[%emt 0:01:06]} hxg5 {[%emt 0:03:12]} 21. hxg5 {[%emt 0:00:08]} Nxg5 {[%emt 0:00:31]} 22. fxg5 {[%emt 0:01:47]} e4 {[%emt 0:00:16]} 23. Bd4 {[%emt 0:03:18]} Bg3+ {[%emt 0:02:06]} 24. Kd1 {[%emt 0:00:24]} Qe7 {[%emt 0:02:44]} 25. Qg2 {[%emt 0:02:26]} Rf3 {[%emt 0:00:03]} 26. g6 {[%emt 0:00:31]} c5 {[%emt 0:01:09]} 27. Bc3 {[%emt 0:00:48]} Qd6+ {[%emt 0:01:13]} 28. Kc1 {[%emt 0:01:02]} Qxg6 {[%emt 0:00:10]} 29. Qd2 {[%emt 0:00:28]} Qf7 {[%emt 0:00:56]} 30. Qd1 {[%emt 0:00:56]} Rf8 {[%emt 0:01:48]} 31. Qd5 {[%emt 0:01:05]} Qxd5 {[%emt 0:00:15]} 0-1